Cogmind - Beta 16.1 @@@ ROGUE MODE // 2026.04.10 @ 22:38:29 Player: JuustuToug Result: Destroyed by S-43 Plague with Heavy Machine Gun Performance ------------- Evolutions (8) 4000 Regions Visited (28) 5600 Robots Destroyed (406) 2030 Value Destroyed (16512) 16512 Prototype IDs (84) 1680 Alien Tech Used (1) 200 Bonus (6959) 6959 TOTAL SCORE: 36981 Bonus ------- High Alert Combat Kills 1648 Follower Combat Kills 2254 Network Hubs Disabled 200 Met Data Miner 300 Met Imprinter 300 Built Enhanced Grunts 300 A7 Reached Mainframe 300 Met R17 at Cetus 500 Met R17 at Research 2000 Friendly Fire -843 Cogmind --------- Core Integrity 0/1450 Matter 277/300 Energy 99/100 System Corruption 36% Temperature Cool (0) Movement Core (50) Location -2/Research Parts ------- > --- POWER (3) -------- (None) > --- PROPULSION (6) --- (None) > --- UTILITY (12) ----- Advanced Target Analyzer > --- WEAPON (3) ------- (None) > --- INVENTORY (5) ---- Advanced Point Defense System Long-range Tractor Beam Hacking Drone Bay (1/1) Enhanced Nova Cannon Advanced Remote Datajack Peak State ------------ > --- POWER ------------ Particle Reactor Quantum Reactor Quantum Reactor > --- PROPULSION ------- Heavy Siege Treads Advanced Heavy Treads Advanced Heavy Siege Treads > --- UTILITY ---------- Advanced Heat Sink Advanced Heat Sink High-capacity Storage Unit Advanced Signal Interpreter Core Analyzer Precision Matter Filter Advanced Kinecellerator Experimental Actuator Array Advanced Transmission Jammer Advanced Cloaking Device Centrium Heavy Armor Plating > --- WEAPON ----------- Railgun Railgun Helical Railgun > --- INVENTORY -------- Micro Antimatter Reactor Micro Antimatter Reactor Heavy Siege Treads Biometal Heavy Treads Advanced Heat Sink Advanced Force Field Advanced Point Defense System Long-range Tractor Beam Hacking Drone Bay Compact HERF Cannon Nova Cannon Enhanced Nova Cannon Railgun Railgun Advanced KE Penetrator Gamma Bomb Array Fusion Bomb Launcher Advanced Remote Datajack [Rating: 192] Favorites ----------- Power Angular Momentum Engine Engine Angular Momentum Engine Power Core Light Nuclear Core Reactor Quantum Reactor Propulsion Light Treads Treads Light Treads Leg Myomer Leg Wheel Compact Wheel Utility High-capacity Storage Unit Device Advanced Heat Sink Storage High-capacity Storage Unit Processor Core Analyzer Hackware Hacking Suite Protection Improved Medium Armor Plating Weapon Heavy Ion Cannon Energy Gun Advanced Variable Charge Gun Energy Cannon Heavy Ion Cannon Ballistic Gun Advanced KE Penetrator Ballistic Cannon Graviton Cannon Launcher Rocket Launcher Special Weapon Remote Datajack Impact Weapon Shock Maul Slashing Weapon Ionic Axe Piercing Weapon Plasma Lance Special Melee Weapon Datajack Build | -11 -10 -10 -10 -9 -8 -8 -7 -7 -7 -7 -7 -7 -6 -6 -6 -6 -6 -5 -5 -5 -5 -5 -5 -4 -4 -3 -3 -2 ------- Run | Yrd Mat Min Exi Min Mat Sto Fac Was Fac Low Low Dat Pro Fac Low Low Zio Pro Fac Ext Cet Arc Hub Fac Arm Res Tes Res Slots Evolved 16 | . . . . . 4 . 2 . . . . . . 2 . . . . 2 . . . . 2 . 2 . 2 Power 2 | . . . . . . . . . . . . . . 1 . . . . . . . . . . . 1 . . Propulsion 3 | . . . . . 1 . 1 . . . . . . . . . . . 1 . . . . . . . . . Utility 10 | . . . . . 2 . 1 . . . . . . 1 . . . . 1 . . . . 2 . 1 . 2 Weapon 1 | . . . . . 1 . . . . . . . . . . . . . . . . . . . . . . . Parts Attached 304 | 7 8 4 5 1 24 13 1 5 13 4 4 . 2 21 5 1 6 3 5 10 9 7 1 28 22 35 17 43 Power 47 | 1 1 1 . . 4 1 . . 1 . . . . 6 . 1 . . 1 1 2 . . 6 6 5 . 10 Engine 10 | 1 1 . . . 2 1 . . . . . . . 4 . 1 . . . . . . . . . . . . Core 8 | . . 1 . . 2 . . . . . . . . 2 . . . . 1 1 . . . . 1 . . . Reactor 29 | . . . . . . . . . 1 . . . . . . . . . . . 2 . . 6 5 5 . 10 Propulsion 73 | 2 2 1 2 . 4 6 . 2 5 1 . . 1 2 2 . 2 1 . 5 2 3 . 7 6 11 . 6 Treads 48 | 2 1 1 . . 3 6 . 2 1 . . . . 1 2 . 2 1 . 5 2 3 . 7 2 1 . 6 Leg 23 | . . . 2 . 1 . . . 4 1 . . 1 . . . . . . . . . . . 4 10 . . Wheel 2 | . 1 . . . . . . . . . . . . 1 . . . . . . . . . . . . . . Hover . | . . . . . . . . . . . . . . . . . . . . . . . . . . . . . Flight . | . . . . . . . . . . . . . . . . . . . . . . . . . . . . . Utility 96 | 2 2 1 . 1 5 1 1 . 1 3 2 . . 5 2 . 2 2 4 4 2 3 . 9 6 12 9 17 Device 65 | 1 . 1 . 1 3 1 . . 1 2 1 . . 4 1 . 2 1 4 2 . 3 . 6 5 7 7 12 Storage 5 | 1 2 . . . . . . . . . . . . . . . . . . . . . . 1 . . 1 . Processor 11 | . . . . . 1 . 1 . . 1 . . . 1 . . . . . . . . . 1 . 2 . 4 Hackware 1 | . . . . . 1 . . . . . . . . . . . . . . . . . . . . . . . Protection 14 | . . . . . . . . . . . 1 . . . 1 . . 1 . 2 2 . . 1 1 3 1 1 Artifact . | . . . . . . . . . . . . . . . . . . . . . . . . . . . . . Weapon 88 | 2 3 1 3 . 11 5 . 3 6 . 2 . 1 8 1 . 2 . . . 3 1 1 6 4 7 8 10 Energy Gun 10 | . 1 . . . 1 2 . . . . . . . 1 . . . . . . 2 . . 1 1 1 . . Energy Cannon 29 | . . . . . 7 1 . 2 5 . . . 1 4 1 . . . . . . . . 1 1 3 1 2 Ballistic Gun 25 | 2 2 . 1 . 1 1 . . . . . . . 2 . . . . . . 1 1 . 3 1 2 3 5 Ballistic Cannon 2 | . . . . . . . . . . . . . . . . . . . . . . . . . . . 1 1 Launcher 14 | . . 1 . . 2 1 . . . . 1 . . 1 . . 1 . . . . . . 1 1 1 2 2 Special Weapon 4 | . . . 1 . . . . . . . 1 . . . . . 1 . . . . . 1 . . . . . Impact Weapon 1 | . . . . . . . . 1 . . . . . . . . . . . . . . . . . . . . Slashing Weapon 1 | . . . . . . . . . . . . . . . . . . . . . . . . . . . 1 . Piercing Weapon 1 | . . . . . . . . . 1 . . . . . . . . . . . . . . . . . . . Special Melee Weapon 1 | . . . 1 . . . . . . . . . . . . . . . . . . . . . . . . . Unidentified Prototypes 47 | . . 1 . 1 1 5 . 1 5 1 1 . . 3 . . 3 . 1 . 4 . . 1 . 5 9 5 Corrupted Parts 2 | . . . . . . . . . 1 . . . . . . . . . . . . 1 . . . . . . System Corruption 15 | . . . . . . . . . 10 . . . . . . . . . . . . 5 . . . . . . Parts Lost 87 | . 2 . . . 2 2 . 1 1 . . . 5 4 1 . . . 3 1 . . 5 7 11 5 3 34 Power 14 | . . . . . 1 . . . . . . . . 1 . . . . . . . . . 2 1 . . 9 Propulsion 23 | . 1 . . . . 1 . . . . . . 1 2 . . . . 1 . . . 2 3 6 . . 6 Utility 30 | . . . . . . 1 . . . . . . 2 . 1 . . . 2 . . . 2 1 2 4 3 12 Weapon 20 | . 1 . . . 1 . . 1 1 . . . 2 1 . . . . . 1 . . 1 1 2 1 . 7 Highest Loss Streak 15 | . 2 . . . 2 1 . 1 1 . . . 4 4 1 . . . 2 1 . . 5 3 4 2 1 15 To Critical Strikes 5 | . 2 . . . . . . . . . . . . 1 . . . . . 1 . . . . . . . 1 Average Backups 18 | 1 10 19 20 20 19 19 19 20 19 18 18 18 15 18 18 20 20 20 19 19 20 19 19 18 19 17 16 16 Power 1 | . 2 1 1 1 . 1 1 1 1 1 1 1 1 . 2 1 1 1 1 1 1 1 1 . 1 1 1 1 Propulsion 3 | . 4 8 6 5 4 5 5 5 5 3 3 3 2 2 1 2 2 2 2 4 4 3 4 5 3 3 3 2 Utility 5 | . 1 3 5 6 6 6 5 6 6 6 6 6 5 5 6 6 7 8 8 7 7 6 5 4 5 5 5 4 Weapon 6 | . 3 6 6 6 6 7 7 8 6 6 6 7 5 8 7 7 6 7 7 5 6 7 8 7 8 6 5 7 Tool/Special . | . . . . . . . . . . . . . . . . . . . . . . . . . . . . . Unused Backups 100 | . 4 3 3 2 11 5 1 1 15 4 2 . . 7 . 1 1 1 1 7 4 2 . 3 6 9 2 5 Power 8 | . 1 . . . 1 . 1 . . 1 1 . . 1 . . . . . . . 1 . . 1 . . . Propulsion 41 | . 1 1 3 2 5 3 . . 9 1 . . . 1 . 1 . . . 2 . . . . 4 8 . . Utility 18 | . . 1 . . 1 2 . . 3 2 . . . 2 . . . . 1 2 2 . . . . 1 1 . Weapon 30 | . 2 1 . . 4 . . 1 3 . 1 . . 3 . . . 1 . 3 2 1 . 3 1 . 1 3 Tool/Special 3 | . . . . . . . . . . . . . . . . . 1 . . . . . . . . . . 2 Average Slot Usage (%) 93 | . 99 100 100 100 98 99 98 89 85 100 99 80 96 87 92 93 92 93 92 93 86 87 87 90 90 98 96 77 Engine 4 | . 14 8 . . 3 3 7 7 5 . . . . 9 12 12 12 12 11 8 1 . . . . . . . Core 1 | . . 5 14 14 5 5 . . . . . . . 1 . . . . . 1 2 . . . . . . . Reactor 4 | . . . . . . . . . 1 7 7 7 7 1 . . . . . . 6 11 11 9 10 12 13 11 Treads 13 | . 23 14 11 . 2 10 29 21 11 . . . . 5 15 25 25 25 26 27 19 21 21 21 21 1 . 9 Leg 10 | . . . 5 28 23 16 . . 7 32 35 35 35 19 9 . . . . . . . . . 1 24 27 5 Wheel 1 | . 4 13 11 . . . . . . . . . . . . . . . . . . . . . . . . . Device 17 | . 14 14 14 14 17 17 15 15 15 14 13 14 15 18 11 12 12 12 15 16 16 18 16 20 23 23 21 24 Storage 7 | . 14 14 14 14 9 9 7 7 7 7 7 7 7 6 6 6 6 6 5 5 5 5 5 5 5 4 4 3 Processor 8 | . . . . . . . 6 7 7 10 14 14 9 8 12 12 12 12 11 11 11 11 11 14 15 13 11 6 Hackware 1 | . . . . . 8 9 7 7 7 3 . . . . . . . . . . . . . . . . . . Protection 2 | . . . . . . . . . . . . . . . 6 6 6 6 5 4 4 2 4 4 . 2 3 3 Energy Gun 3 | . 9 13 14 14 2 2 . . . . . . . 1 . . . . . . 6 11 11 9 4 4 1 . Energy Cannon 9 | . . . . . 20 20 15 21 20 22 20 2 18 7 17 18 17 18 15 15 4 . . . 3 1 2 1 Ballistic Gun 5 | . 18 14 2 14 2 4 7 . . . . . . 3 . . . . . . 4 5 4 5 6 7 7 9 Peak Build Rating 192 | 7 11 17 34 41 52 51 42 61 81 87 99 88 95 99 94 77 81 81 87 89 132 134 128 135 141 164 169 192 Average Rating 88 | 5 8 12 18 33 46 44 40 48 62 80 87 78 85 85 87 77 77 78 83 84 117 126 125 124 120 153 161 171 On Entrance 74 | . 7 11 13 33 33 48 32 41 49 76 87 88 88 82 93 77 77 79 79 85 85 132 126 106 107 107 152 165 Avg Prop Armor Cover (%) 8 | . 7 12 14 . 8 5 . . . . . . . 13 4 . . . . . . . 8 7 5 5 . . Naked Turns . | . . . . . . . . . . . . . . . . . . . . . . . . . . . . . Heaviest Build 168 | 14 50 50 50 50 63 63 63 68 74 72 79 72 79 87 101 101 101 105 106 107 112 106 112 109 111 145 158 168 Greatest Support 235 | 40 40 40 60 60 75 75 80 140 145 129 129 129 129 126 143 143 146 156 176 179 235 235 216 211 206 165 165 225 Greatest Overweight (x) 3 | . 1 3 3 . 1 1 . . 2 . . . . 1 . . . . . . . . . 1 1 . . . Average Overweight (x) . | . . 2 1 . . . . . . . . . . . . . . . . . . . . . . . . . Largest Inventory Capacity 20 | 8 20 20 20 20 20 20 20 20 20 20 20 20 20 20 20 20 20 20 20 20 20 20 20 20 20 20 20 20 Average Capacity 19 | 6 14 20 20 20 20 20 20 20 20 20 20 20 20 20 20 20 20 20 20 20 20 20 20 20 20 20 20 19 Most Carried 20 | 3 19 20 20 20 20 20 20 20 20 20 20 20 20 20 20 20 20 20 20 20 20 20 20 20 20 20 20 20 Average Carried 18 | 1 10 19 19 19 19 19 19 20 19 19 19 20 16 19 18 19 19 19 19 19 19 19 19 18 19 19 19 18 Final Capacity 20 | 8 20 20 20 20 20 20 20 20 20 20 20 20 20 20 20 20 20 20 20 20 20 20 20 20 20 20 20 5 Final Carried 20 | 3 19 20 20 20 19 20 20 20 20 20 20 20 14 20 20 20 20 20 20 20 20 20 19 20 16 20 20 5 Class Distribution -------------------- 18% | Scavenger-Tank 15% | Mutant 14% | Scavenger-Skirmisher 13% | Tank 10% | Skirmisher 6% | Commander-Tank 6% | Scavenger-Gunner 6% | Gunner 3% | Scavenger-Mutant Dominant Class ---------------- Mutant | -10/Materials Mutant | -10/Mines Scavenger-Mutant | -10/Exiles Mutant | -9/Mines Gunner | -8/Materials Gunner | -8/Storage Scavenger-Skirmisher | -7/Factory Scavenger-Tank | -7/Waste Skirmisher | -7/Factory Skirmisher | -7/Lower Caves Skirmisher | -7/Lower Caves Mutant | -7/Data Miner Skirmisher | -6/Proximity Caves Scavenger-Mutant | -6/Factory Tank | -6/Lower Caves Tank | -6/Lower Caves Tank | -6/Zion Scavenger-Tank | -5/Proximity Caves Scavenger-Tank | -5/Factory Commander-Tank | -5/Extension Commander-Tank | -5/Cetus Scavenger-Tank | -5/Archives Scavenger-Tank | -5/Hub_04(d) Scavenger-Skirmisher | -4/Factory Scavenger-Skirmisher | -4/Armory Scavenger-Tank | -3/Research Scientist-Mutant | -3/Testing Scavenger-Tank | -2/Research Resources | -11 -10 -10 -10 -9 -8 -8 -7 -7 -7 -7 -7 -7 -6 -6 -6 -6 -6 -5 -5 -5 -5 -5 -5 -4 -4 -3 -3 -2 ----------- Run | Yrd Mat Min Exi Min Mat Sto Fac Was Fac Low Low Dat Pro Fac Low Low Zio Pro Fac Ext Cet Arc Hub Fac Arm Res Tes Res Matter Collected 10843 | 262 294 283 57 61 983 541 . 257 452 167 148 . 127 521 138 160 120 30 268 289 162 207 104 943 787 832 527 2123 Remotely 1993 | . . . . . . . . . . . . . . . . . . . . . . . . 137 351 75 165 1265 Salvage Created 20037 | 18 731 168 109 122 1628 1825 . 594 801 50 195 . 127 697 307 17 . 78 830 619 . 569 120 2818 1433 830 402 4949 Parts 969 | 2 56 12 4 8 95 93 . 9 40 . 4 . 5 37 6 . . 2 35 25 . 37 4 107 76 44 37 231 Haulers Intercepted 12 | . 1 . . . 4 5 . . 1 . . . . . . . . . 1 . . . . . . . . . Recyclers Shooed 18 | 1 2 1 . . 1 . . . 3 . . . . . . . . . 1 1 . . . 6 . . . 2 Parts Field Recycled . | . . . . . . . . . . . . . . . . . . . . . . . . . . . . . Retrieved Matter . | . . . . . . . . . . . . . . . . . . . . . . . . . . . . . Parts Self-Destructed 10 | . . . . . . . . . . 1 3 . 2 . 2 . 2 . . . . . . . . . . . Prevented . | . . . . . . . . . . . . . . . . . . . . . . . . . . . . . Parts Restored . | . . . . . . . . . . . . . . . . . . . . . . . . . . . . . Kills | -11 -10 -10 -10 -9 -8 -8 -7 -7 -7 -7 -7 -7 -6 -6 -6 -6 -6 -5 -5 -5 -5 -5 -5 -4 -4 -3 -3 -2 ------- Run | Yrd Mat Min Exi Min Mat Sto Fac Was Fac Low Low Dat Pro Fac Low Low Zio Pro Fac Ext Cet Arc Hub Fac Arm Res Tes Res Combat Hostiles Destroyed 281 | . 16 4 . 1 34 29 . 2 15 . 3 . 8 13 7 . . . 15 9 . 2 2 23 28 13 8 49 Melee 4 | . . . . . . . . . . . . . . 3 . . . . . . . . 1 . . . . . Guns 103 | . 16 2 . 1 6 6 . . . . . . . 2 . . . . . . . 2 1 18 14 5 3 27 Cannons 69 | . . . . . 12 13 . 1 5 . 2 . 2 5 3 . . . 5 9 . . . . 6 1 1 4 AOE 78 | . . 2 . . 16 9 . . 8 . 1 . 6 2 4 . . . 10 . . . . . 8 6 4 2 Classes Destroyed 20 | 1 7 . . 1 3 2 . 1 3 . . . 1 . . . . . . . . . . . 1 . . . Worker 23 | . 1 . . 2 3 2 . . . . . . . 3 . . . . 1 . . . . . . . 5 6 Builder 24 | . . . . . 1 . . . 3 . . . . 1 . . . . . 2 . . . 2 . . 1 14 Tunneler 9 | 1 . 2 . 1 . . . . 1 . . . . . . . . . 1 . . . . 1 . 2 . . Hauler 12 | . 1 . . . 4 5 . . 1 . . . . . . . . . 1 . . . . . . . . . Recycler 26 | . 1 . . . 3 4 . . 2 . . . . 1 . . . . 2 . . . . 8 . 1 . 4 Mechanic 4 | . . . . . . 2 . . . . . . . 1 . . . . . . . . . . . . . 1 Operator 12 | . 2 . . . 4 . . . . . . . . . . . . . . . . 6 . . . . . . Watcher 10 | . 1 . . . 4 2 . . 1 . . . . 1 . . . . . . . . . . . 1 . . Swarmer 60 | . 5 . . . 10 4 . . 3 . . . 3 8 . . . . 10 . . . . . 5 7 5 . Saboteur 3 | . . . . . . . . . . . . . . . . . . . . . . . . . 3 . . . Grunt 99 | . 11 4 . . 18 10 . . . . 2 . 3 2 4 . . . 1 2 . . . 9 8 2 . 23 Brawler 5 | . . . . 1 . 2 . . . . . . . . . . . . . . . . . . . . . 2 Duelist 6 | . . . . . 1 1 . . . . . . 1 . . . . . . . . . . 2 . . . 1 Protector 1 | . . . . . . . . . 1 . . . . . . . . . . . . . . . . . . . Sentry 33 | . . . . . 5 11 . . 2 . . . . . . . . . 2 2 . 2 1 5 . 1 . 2 Specialist 9 | . . . . . . . . . 1 . . . . . . . . . . . . . . . 6 . . 2 Hunter 22 | . . . . . . 1 . . 6 . . . . 1 . . . . . 2 . . . 2 . 3 1 6 Programmer 35 | . . . . . . . . . 2 . 1 . . 2 . . . . 2 1 . . 1 5 6 . 2 13 Behemoth 3 | . . . . . . . . . . . . . 1 . . . . 1 . 1 . . . . . . . . Compactor 2 | . . . . . . . . 2 . . . . . . . . . . . . . . . . . . . . Decomposer 3 | . . . . . . . . . . . . . . . 1 2 . . . . . . . . . . . . Packrat 2 | . . . . . . . . . . 1 . . . . 1 . . . . . . . . . . . . . Savage 4 | . . . . . . . . . . . . . . . 3 . . . . . . 1 . . . . . . Butcher 4 | . . . . . . . . . . . . . . . . . . . . 2 . 2 . . . . . . Best Kill Streak 17 | 1 3 2 . 2 9 10 . 1 12 . 2 . 3 6 4 . . . 8 2 . 2 1 8 9 6 6 17 Combat Bots Only 11 | . 3 2 . 1 6 6 . 1 9 . 2 . 3 4 4 . . . 5 2 . 2 1 5 9 6 5 11 Max Kills in Single Turn 8 | 1 2 1 . 1 3 5 . 1 3 1 1 . 3 2 4 1 . 1 8 3 . 2 1 1 4 4 3 3 Gunslinging 1 | . 1 . . . . . . . . . . . . . . . . . . . . . . . . . . . Exploded 5 | . . 1 . . 2 4 . . 2 . 1 . 3 1 4 . . . 5 . . . . . 4 4 2 1 Melee 1 | . . . . . . . . . . . . . . 1 . . . . . . . . 1 . . . . . Uniques/NPCs Destroyed . | . . . . . . . . . . . . . . . . . . . . . . . . . . . . . Combat | -11 -10 -10 -10 -9 -8 -8 -7 -7 -7 -7 -7 -7 -6 -6 -6 -6 -6 -5 -5 -5 -5 -5 -5 -4 -4 -3 -3 -2 -------- Run | Yrd Mat Min Exi Min Mat Sto Fac Was Fac Low Low Dat Pro Fac Low Low Zio Pro Fac Ext Cet Arc Hub Fac Arm Res Tes Res Hostile Shots Fired 2113 | . 98 25 . 3 131 74 . 3 79 . 12 . 78 77 29 . . 15 59 22 9 . 74 198 254 97 59 717 Missed 613 | . 27 8 . 1 45 26 . . 21 . 2 . 28 25 6 . . 4 10 8 5 . 18 61 56 41 23 198 Hits 1500 | . 71 17 . 2 86 48 . 3 58 . 10 . 50 52 23 . . 11 49 14 4 . 56 137 198 56 36 519 Melee 39 | . . . . . 2 . . 3 . . . . 3 . 9 . . . . . . . . 9 1 . . 12 Projectile 1461 | . 71 17 . 2 84 48 . . 58 . 10 . 47 52 14 . . 11 49 14 4 . 56 128 197 56 36 507 AOE 5 | . . . . . . . . . . . . . . . . . . . . . . . . 1 . 4 . . Critical Strikes 88 | . 3 . . . 6 2 . 1 4 . . . 2 2 3 . . 1 4 1 1 . 10 13 9 2 1 23 Part Disruptions 9 | . . . . . . . . . . . . . . . . . . . 1 . . . 1 2 2 . . 3 Damage Taken 31347 | . 770 236 . 16 1205 774 . 118 1136 . 173 . 1313 829 768 . . 88 1070 341 196 53 2266 3224 3932 1126 828 10885 Core 3266 | . 141 12 . 10 148 119 . . 58 . 60 . 97 83 125 . . . 40 57 . . 255 250 241 119 . 1451 Absorbed by Shields 2330 | . . . . . . . . . . . . . . . . . . 32 239 81 . . . . . 359 . 1619 Reduced by Siege Mode 1749 | . . . . . . . . . 85 . . . . . 14 . . . 5 . . . . 86 274 . . 1285 Regen/Repaired (Parts) 1134 | . 123 . . . 15 46 . . . . . . . . . . 950 . . . . . . . . . . . Core Remaining (%) 67 | 100 . . . 34 . 51 . . . . . . 69 . . . . 75 . . . . 64 . 57 . 90 . Volleys Fired 983 | 2 72 14 26 3 133 67 . 10 25 6 13 . 27 44 23 5 . 3 40 16 . 20 22 82 60 53 34 183 Largest 3 | 2 2 2 1 2 3 3 . 3 3 3 3 . 3 3 1 1 . 3 3 3 . 3 3 3 3 3 3 3 Hottest 355 | 40 63 63 40 63 211 211 . 225 218 208 208 . 205 200 100 100 . 255 255 265 . 355 240 355 240 220 148 193 Shots Fired 1948 | 4 143 27 26 7 261 168 . 30 47 11 30 . 40 73 23 5 . 7 57 48 . 56 30 203 133 111 57 351 Gun 1120 | 4 143 25 21 7 87 52 . . . . . . . 23 . . . . . . . 56 30 192 93 80 38 269 Cannon 702 | . . . . . 138 108 . 30 39 11 26 . 24 48 22 5 . 7 55 48 . . . . 32 27 17 65 Launcher 93 | . . 2 . . 18 8 . . 8 . 2 . 8 2 1 . . . 2 . . . . 11 8 4 2 17 Special 33 | . . . 5 . 18 . . . . . 2 . 8 . . . . . . . . . . . . . . . Kinetic 721 | 4 103 13 . 4 42 22 . . . . . . . 16 . . . . . . . 19 5 84 53 48 38 270 Thermal 1053 | . 40 12 21 3 183 138 . 30 33 11 26 . 24 51 22 5 . 7 55 48 . 37 25 108 72 54 17 31 Explosive 65 | . . 2 . . 18 8 . . 8 . 2 . 8 2 1 . . . 2 . . . . . 8 2 2 2 Electromagnetic 76 | . . . . . . . . . 6 . . . . 4 . . . . . . . . . 11 . 7 . 48 Robot Hit Streak 32 | 4 8 5 12 8 15 25 . 15 20 4 4 . 5 8 11 3 . 6 23 7 . 8 4 14 32 6 8 11 Robot Miss Streak 7 | . 6 3 1 1 3 2 . 1 5 1 3 . 4 6 7 1 . . 2 4 . 2 1 3 3 7 2 4 Penetration Max 2 | . . . . . . . . . . . . . . . . . . . . . . 1 . 1 1 2 1 2 Secondary Targets 21 | . 3 . . . . . . . . . . . . . . . . . . . . . . 4 3 1 . 10 Max Gunslinging Chain 1 | . 1 . . . . . . . . . . . . . . . . . . . . . . 1 1 1 . 1 Shots Hit Robots 1121 | 4 80 16 25 6 142 96 . 25 29 4 9 . 7 40 13 5 . 4 34 31 . 32 10 128 90 43 37 211 Core Hits 776 | 1 40 9 6 4 84 66 . 5 35 2 6 . 15 21 28 3 . 1 42 22 . 22 3 71 61 33 20 176 Critical Kills 18 | . . . . . . 1 . 1 1 . . . . . . . . 1 . . . . . 4 . 1 . 9 Critical Parts Destroyed 21 | . . . . . . . . . . . . . . 1 . . . . . . . 1 . 3 1 1 1 13 Critical Strikes 45 | . . . . . . 1 . 1 1 . . . . 2 . . . 1 . . . 1 . 9 1 2 1 25 Meltdown 6 | . . . . . . 1 . 1 1 . . . . . . . . 1 . . . . . . . 1 . 1 Destroy 36 | . . . . . . . . . . . . . . 1 . . . . . . . 1 . 9 1 1 1 22 Corrupt 2 | . . . . . . . . . . . . . . . . . . . . . . . . . . . . 2 Impale 1 | . . . . . . . . . . . . . . 1 . . . . . . . . . . . . . . Melee Attacks 32 | . . . 2 . . . . . . . . . . 24 . . . . . . . . . . . . 5 1 Impact . | . . . . . . . . . . . . . . . . . . . . . . . . . . . . . Slashing 6 | . . . . . . . . . . . . . . . . . . . . . . . . . . . 5 1 Piercing 24 | . . . . . . . . . . . . . . 24 . . . . . . . . . . . . . . Sneak Attacks 7 | . . . 2 . . . . . . . . . . 1 . . . . . . . . . . . . 3 1 Combat Hostiles . | . . . . . . . . . . . . . . . . . . . . . . . . . . . . . Follow-up Attacks . | . . . . . . . . . . . . . . . . . . . . . . . . . . . . . Damage Inflicted 47873 | 48 859 409 227 157 4195 3544 . 650 2453 97 411 . 1013 1698 1254 168 . 165 2055 1403 . 1206 336 5015 4417 2518 2035 11540 Guns 18739 | 48 849 206 227 80 685 629 . . . . . . . 124 . . . . . . . 1206 295 4191 2169 934 1248 5848 Cannons 12360 | . . . . . 1454 1271 . 650 723 97 329 . 80 797 507 168 . 165 1216 1301 . . . . 1060 532 206 1804 Explosions 15620 | . . 175 . . 2054 1636 . . 1699 . 82 . 933 377 747 . . . 807 . . . . 811 1188 1043 322 3746 Melee 784 | . . . . . . . . . . . . . . 400 . . . . . . . . . . . . 259 125 Ramming 370 | . 10 28 . 77 2 8 . . 31 . . . . . . . . . 32 102 . . 41 13 . 9 . 17 Kinetic 12877 | 48 585 143 . 45 379 231 . . . . . . . 87 . . . . . . . 437 82 1878 1196 670 1248 5848 Thermal 17358 | . 264 63 227 35 1995 1669 . 650 547 97 329 . 80 713 507 168 . 165 1216 1301 . 769 213 2313 2033 617 206 1181 Explosive 11597 | . . 175 . . 1819 1636 . . 1699 . 82 . 933 377 747 . . . 807 . . . . . 1188 873 322 939 Electromagnetic 4887 | . . . . . . . . . 176 . . . . 121 . . . . . . . . . 811 . 349 . 3430 Impact . | . . . . . . . . . . . . . . . . . . . . . . . . . . . . . Slashing 384 | . . . . . . . . . . . . . . . . . . . . . . . . . . . 259 125 Piercing 400 | . . . . . . . . . . . . . . 400 . . . . . . . . . . . . . . Highest Corruption 36 | . 1 1 1 1 2 4 . . 22 22 22 22 22 3 . . . . 5 5 5 10 12 4 17 . 8 36 Average Corruption 8 | . 1 1 1 1 2 3 . . 15 22 22 22 22 2 . . . . 4 5 5 6 6 2 8 . 5 18 Corruption Purged 13 | . . . . . . . . . . . . . . 3 . . . . . . . 10 . . . . . . Corruption Blocked . | . . . . . . . . . . . . . . . . . . . . . . . . . . . . . Effects 376 | . 5 10 1 4 1 31 . . 16 32 19 5 29 . . . . . 6 38 16 16 1 14 34 . 16 82 Message Errors 89 | . . 2 . . . 9 . . 4 10 7 2 6 . . . . . 1 10 4 . . 3 8 . 5 18 Matter Fused 83 | . 2 3 1 . 1 6 . . 2 11 6 3 8 . . . . . 2 7 3 4 . 2 5 . 2 15 Heat Flow Errors 49 | . 1 1 . . . 4 . . 2 1 2 . 1 . . . . . . 7 4 4 . 4 8 . 2 8 Energy Discharges 44 | . 1 1 . 2 . 4 . . 3 2 . . 4 . . . . . 2 3 1 1 1 3 4 . 5 7 Parts Rejected 4 | . . . . . . 1 . . . . . . . . . . . . . 1 . . . . . . . 2 Parts Fused 6 | . . . . . . 1 . . 1 1 . . 1 . . . . . . . . . . . . . . 2 Data Loss (minor) 39 | . 1 1 . 1 . 2 . . 1 3 1 . 1 . . . . . 1 7 1 3 . 1 2 . 1 12 Data Loss (major) 10 | . . 1 . . . . . . . 2 . . 4 . . . . . . . 1 . . . 2 . . . Misfires 12 | . . . . 1 . 3 . . . 1 1 . 1 . . . . . . 1 . 1 . 1 1 . . 1 Alerts 11 | . . 1 . . . 1 . . 2 1 . . . . . . . . . 1 2 . . . . . . 3 Misdirections 2 | . . . . . . . . . 1 . . . 1 . . . . . . . . . . . . . . . Weapon Failures 27 | . . . . . . . . . . . 2 . 2 . . . . . . 1 . 3 . . 4 . 1 14 Overload Shots 25 | . . . . . . . . . . . . . . . . . . . . . . 1 17 6 1 . . . Effects 1 | . . . . . . . . . . . . . . . . . . . . . . . 1 . . . . . Heat Surge 1 | . . . . . . . . . . . . . . . . . . . . . . . 1 . . . . . Overflow Damage 1052 | . . . . 3 178 57 . . 50 19 21 . 24 75 12 9 . . 42 2 . . . 16 232 62 . 250 Projectiles 430 | . . . . . 32 21 . . 21 19 21 . . 28 12 9 . . 41 . . . . . 86 26 . 114 Explosions 571 | . . . . . 146 36 . . 29 . . . 24 1 . . . . 1 . . . . 16 146 36 . 136 Melee 51 | . . . . 3 . . . . . . . . . 46 . . . . . 2 . . . . . . . . Knockbacks 4 | . . . . . . . . . 1 . . . . . . . . . . 2 . . 1 . . . . . Impact 4 | . . . . . . . . . 1 . . . . . . . . . . 2 . . 1 . . . . . Kinetic . | . . . . . . . . . . . . . . . . . . . . . . . . . . . . . Secondary . | . . . . . . . . . . . . . . . . . . . . . . . . . . . . . Self-Inflicted Damage 1463 | . . 2 . . 25 46 . . 132 . 22 . 159 . 28 . . . 233 . . . . 20 143 . 74 579 Shots 42 | . . . . . 1 1 . . 5 . 1 . 4 . 2 . . . 5 . . . . 1 3 . 1 18 Rammed 22 | . 4 4 . . . . . . . . . . . . . . . . 5 3 . . 3 1 . . . 2 Targets Rammed 33 | . 4 5 . 3 1 1 . . 2 . . . . . . . . . 5 4 . . 4 1 . 1 . 2 Kicked 8 | . . . . 3 1 1 . . 2 . . . . . . . . . . . . . . . . 1 . . Crushed 3 | . . 1 . . . . . . . . . . . . . . . . . 1 . . 1 . . . . . Highest Temperature 405 | . 152 250 44 42 405 355 . 72 134 151 311 . 86 160 249 167 . 339 311 264 122 63 366 399 203 224 221 228 Average Temperature 82 | . 30 71 17 20 103 71 . 40 37 57 96 . 34 38 103 78 . 144 90 104 50 26 137 107 70 85 34 47 Received Heat Transfer 4124 | . 258 135 . . 558 342 . . 30 . 18 . 186 72 129 . . 9 83 70 18 . 63 638 600 18 12 885 Effects 13 | . . . . . 7 . . . . . . . . . 4 . . . . . . . 1 1 . . . . Shutdowns 2 | . . . . . 1 . . . . . . . . . . . . . . . . . . 1 . . . . Energy Bleed 3 | . . . . . 1 . . . . . . . . . 1 . . . . . . . 1 . . . . . Interference 8 | . . . . . 5 . . . . . . . . . 3 . . . . . . . . . . . . . Siege Activations 20 | . . . . . . . . . 1 . . . . . 1 . . . 1 . . . . 3 6 . . 8 Total Turns 459 | . . . . . . . . . 30 . . . . . 22 . . . 20 . . . . 61 110 . . 216 Longest Duration 74 | . . . . . . . . . 30 . . . . . 22 . . . 20 . . . . 36 40 . . 74 Martial Activations . | . . . . . . . . . . . . . . . . . . . . . . . . . . . . . Shielding Activations . | . . . . . . . . . . . . . . . . . . . . . . . . . . . . . Robots Disrupted . | . . . . . . . . . . . . . . . . . . . . . . . . . . . . . Combat Hostiles . | . . . . . . . . . . . . . . . . . . . . . . . . . . . . . Robots Corrupted 23 | . . . . 1 . . . . . . . . . 1 . . . . . . . . . 5 . 1 . 15 Combat Hostiles 22 | . . . . . . . . . . . . . . 1 . . . . . . . . . 5 . 1 . 15 Parts Fried 41 | . . . . 2 . . . . 2 . . . . 2 . . . . . 2 . . . 4 . 2 . 27 Impact Corruptions 2 | . . . . 1 . . . . . . . . . . . . . . . 1 . . . . . . . . Robots Melted 6 | . . . . . . 1 . 1 1 . . . . . . . . 1 . . . . . . . 1 . 1 Combat Hostiles 4 | . . . . . . 1 . 1 1 . . . . . . . . . . . . . . . . . . 1 Parts Melted 44 | . . . . . 2 9 . 1 3 . . . . 2 . . . 3 5 5 . 3 . 2 4 1 . 4 Heat Transferred 22836 | . 600 150 450 75 3292 2997 . 962 665 148 444 . 111 952 600 200 . 199 1555 1719 . 938 259 2714 1924 629 185 1068 Parts Sabotaged 4 | . . . . . . . . . . . . . . . . . . . . . . . . . 2 . . 2 Parts Stolen . | . . . . . . . . . . . . . . . . . . . . . . . . . . . . . Parts Stripped . | . . . . . . . . . . . . . . . . . . . . . . . . . . . . . Power Chain Reactions 6 | . . . . . . . . . 1 . . . . . . . . . . . . . . . . . . 5 Alert | -11 -10 -10 -10 -9 -8 -8 -7 -7 -7 -7 -7 -7 -6 -6 -6 -6 -6 -5 -5 -5 -5 -5 -5 -4 -4 -3 -3 -2 ------- Run | Yrd Mat Min Exi Min Mat Sto Fac Was Fac Low Low Dat Pro Fac Low Low Zio Pro Fac Ext Cet Arc Hub Fac Arm Res Tes Res Maximum Alert Level 3 | . . . . . 2 3 . . 1 . . . . . . . . . 2 2 2 1 3 2 3 1 1 3 Low Security (%) 56 | 100 100 100 . 100 16 9 100 100 70 . . . . 100 . . . . 55 36 . 99 57 52 10 46 92 39 Level 1 28 | . . . . . 59 24 . . 29 . . . . . . . . . 34 42 88 . 5 31 47 53 7 25 Level 2 12 | . . . . . 24 58 . . . . . . . . . . . . 10 21 11 . 28 16 41 . . 11 Level 3 2 | . . . . . . 7 . . . . . . . . . . . . . . . . 8 . . . . 23 Level 4 . | . . . . . . . . . . . . . . . . . . . . . . . . . . . . . Level 5 . | . . . . . . . . . . . . . . . . . . . . . . . . . . . . . High Security . | . . . . . . . . . . . . . . . . . . . . . . . . . . . . . Max Security . | . . . . . . . . . . . . . . . . . . . . . . . . . . . . . Peak Influence 1095 | 5 111 58 . 71 464 735 124 . 323 . . . . 193 . . . . 430 546 434 206 710 456 700 353 226 1095 Initial 353 | . . . . . 5 185 122 . . . . . . 18 . . . . . 170 276 94 4 189 215 353 43 117 Average 206 | . 39 9 . 15 286 405 69 . 83 . . . . 84 . . . . 200 275 326 125 238 241 391 213 51 393 Influence Increases 12826 | 5 495 134 11 179 1334 1097 35 . 525 . 70 . 190 547 90 . . . 624 1012 314 282 1085 819 979 453 460 2086 Destroy 0b10 Robot/C 6420 | . 320 80 . 120 680 600 . . 280 . 60 . 160 260 80 . . . 300 440 140 80 300 460 560 260 220 1020 Destroy 0b10 Robot/NC 690 | 5 30 10 10 15 95 75 . . 45 . . . . 35 . . . . 25 20 10 35 35 55 . 20 35 135 Destroy Leader 1250 | . 64 20 . 20 156 174 . . 74 . 10 . 30 52 10 . . . 52 44 . . 72 100 110 52 30 180 Allied During Kill 1217 | . . . 1 24 3 31 . . . . . . . . . . . . . 444 150 115 382 . . . 18 49 Successful Hack 259 | . 36 . . . 9 33 35 . 9 . . . . 62 . . . . . . . . . 21 . 24 30 . Select Force Hacks 110 | . 30 . . . . 30 . . 50 . . . . . . . . . . . . . . . . . . . Disable Machine 690 | . . . . . 105 75 . . 15 . . . . 45 . . . . 45 15 . 30 60 75 45 45 15 120 Anti-Garrison Action 150 | . . . . . . . . . . . . . . . . . . . . . . . 150 . . . . . Destroy Structure 1665 | . . 24 . . 166 49 . . 37 . . . . 33 . . . . 202 34 14 22 86 78 264 52 112 492 Partial Spotted 15 | . . . . . 15 . . . . . . . . . . . . . . . . . . . . . . . Lose Combat Pursuer 360 | . 15 . . . 105 30 . . 15 . . . . 60 . . . . . 15 . . . 30 . . . 90 Influence Decreases 11731 | 5 495 130 15 165 907 1268 305 . 227 298 70 . 160 446 221 . . . 275 867 572 504 712 766 745 1049 328 1201 Entered New Map 2011 | . . . 4 . 9 256 148 . . 111 . . . 12 50 . . . . 179 218 142 10 198 225 321 35 93 Time Decay 7227 | 5 495 130 11 165 543 502 90 . 217 187 70 . 142 394 161 . . . 245 538 334 302 222 498 410 678 270 618 Lost Part 801 | . . . . . 20 20 . . 10 . . . 18 40 10 . . . 30 10 . . 50 70 110 50 23 340 Lost Ally 575 | . . . . . 35 40 . . . . . . . . . . . . . 140 20 60 280 . . . . . Purge Threat 1117 | . . . . . 300 450 67 . . . . . . . . . . . . . . . 150 . . . . 150 Squads Dispatched 62 | . 3 . . . 9 4 . . 4 . . . . 5 . . . . 2 1 . . 4 3 5 3 4 15 Investigation 11 | . 2 . . . 3 2 . . 2 . . . . . . . . . . . . . . . . 2 . . Extermination 19 | . . . . . . . . . 1 . . . . 3 . . . . 2 . . . 1 2 3 . 2 5 Reinforcement 25 | . 1 . . . 6 . . . 1 . . . . 2 . . . . . 1 . . 1 1 2 1 2 7 Assault 7 | . . . . . . 2 . . . . . . . . . . . . . . . . 2 . . . . 3 Garrison . | . . . . . . . . . . . . . . . . . . . . . . . . . . . . . Intercept . | . . . . . . . . . . . . . . . . . . . . . . . . . . . . . Searches Triggered . | . . . . . . . . . . . . . . . . . . . . . . . . . . . . . Data Miner Redirects 1 | . . . . . . . . . . . . . . . . . . . . . . . . . . . . 1 Construction Impeded 6 | . . . . . 1 . . . 1 . . . . 1 . . . . . . . . 1 . . . . 2 Haulers Reinforced 2 | . . . . . . . . . . . . . . . . . . . . . . . . 1 . . . 1 Active Scanning Responses . | . . . . . . . . . . . . . . . . . . . . . . . . . . . . . Cargo Convoy Interrupts 1 | . . . . . . . . . 1 . . . . . . . . . . . . . . . . . . . Stealth | -11 -10 -10 -10 -9 -8 -8 -7 -7 -7 -7 -7 -7 -6 -6 -6 -6 -6 -5 -5 -5 -5 -5 -5 -4 -4 -3 -3 -2 --------- Run | Yrd Mat Min Exi Min Mat Sto Fac Was Fac Low Low Dat Pro Fac Low Low Zio Pro Fac Ext Cet Arc Hub Fac Arm Res Tes Res Distress Signals 24 | . 3 . . . 4 . . . 2 . . . . 1 . . . . . 2 2 . 1 2 . 4 . 3 Communications Jammed 173 | . . . . . . . . . . . . . . 17 . . . . . 7 50 1 17 5 11 51 . 14 Distress Signals 171 | . . . . . . . . . . . . . . 17 . . . . . 7 50 1 16 5 11 50 . 14 Times Spotted 460 | . 28 4 . 7 61 39 . 6 25 . 3 . 6 21 7 . . 1 14 27 9 10 16 31 33 22 12 78 Peak Tracking Total 12 | . 6 2 . 3 7 8 . 4 11 . 2 . 5 4 4 . . 1 6 6 5 2 6 4 6 7 5 12 Tactical Retreats 15 | . 1 . . . 5 1 . . 1 . . . . 2 . . . . . 1 . . . 1 . . . 3 Traps | -11 -10 -10 -10 -9 -8 -8 -7 -7 -7 -7 -7 -7 -6 -6 -6 -6 -6 -5 -5 -5 -5 -5 -5 -4 -4 -3 -3 -2 ------- Run | Yrd Mat Min Exi Min Mat Sto Fac Was Fac Low Low Dat Pro Fac Low Low Zio Pro Fac Ext Cet Arc Hub Fac Arm Res Tes Res Traps Triggered 20 | . 3 . . . 3 6 1 . 2 . . . . 1 . . . . 1 . . . . 1 . . 1 1 Indirectly . | . . . . . . . . . . . . . . . . . . . . . . . . . . . . . Trap Hack Attempts . | . . . . . . . . . . . . . . . . . . . . . . . . . . . . . Triggered . | . . . . . . . . . . . . . . . . . . . . . . . . . . . . . Disarmed . | . . . . . . . . . . . . . . . . . . . . . . . . . . . . . Reprogrammed . | . . . . . . . . . . . . . . . . . . . . . . . . . . . . . Reused . | . . . . . . . . . . . . . . . . . . . . . . . . . . . . . Traps Extracted . | . . . . . . . . . . . . . . . . . . . . . . . . . . . . . Installed . | . . . . . . . . . . . . . . . . . . . . . . . . . . . . . Triggered . | . . . . . . . . . . . . . . . . . . . . . . . . . . . . . Objects Rigged 1 | . 1 . . . . . . . . . . . . . . . . . . . . . . . . . . . Machines | -11 -10 -10 -10 -9 -8 -8 -7 -7 -7 -7 -7 -7 -6 -6 -6 -6 -6 -5 -5 -5 -5 -5 -5 -4 -4 -3 -3 -2 ---------- Run | Yrd Mat Min Exi Min Mat Sto Fac Was Fac Low Low Dat Pro Fac Low Low Zio Pro Fac Ext Cet Arc Hub Fac Arm Res Tes Res Machines Disabled 53 | . . . . . 7 5 . . 1 . 1 . . 3 . . . . 3 2 . 2 5 9 3 3 1 8 Max in Single Turn 2 | . . . . . 1 1 . . 1 . 1 . . 1 . . . . 2 1 . 1 1 2 1 1 1 2 Garrison Access 4 | . . . . . . 1 . . 1 . . . . 1 . . . . . . . . 1 . . . . . Network Hub 1 | . . . . . . . . . . . . . . . . . . . . . . . 1 . . . . . Machines Repaired . | . . . . . . . . . . . . . . . . . . . . . . . . . . . . . Machines Dismantled 1 | . . . . . . . . . . . . . . . . . . . . . . . 1 . . . . . Machines Sabotaged . | . . . . . . . . . . . . . . . . . . . . . . . . . . . . . Overloaded Fab Kills 2 | . . . . . . . . . 2 . . . . . . . . . . . . . . . . . . . Hacking | -11 -10 -10 -10 -9 -8 -8 -7 -7 -7 -7 -7 -7 -6 -6 -6 -6 -6 -5 -5 -5 -5 -5 -5 -4 -4 -3 -3 -2 --------- Run | Yrd Mat Min Exi Min Mat Sto Fac Was Fac Low Low Dat Pro Fac Low Low Zio Pro Fac Ext Cet Arc Hub Fac Arm Res Tes Res Machines Accessed 70 | . 8 1 2 . 7 15 4 . 8 1 . 3 . 7 1 . . . 2 . . . . 4 1 2 4 . Terminals 32 | . 6 . . . 3 11 4 . 5 . . . . 3 . . . . . . . . . . . . . . Fabricators 5 | . . . . . . . . . 1 . . . . . . . . . 1 . . . . 1 1 . 1 . Repair Stations 10 | . 1 . . . 1 2 . . 1 . . . . 1 . . . . 1 . . . . 1 . 1 1 . Recycling Units 3 | . 1 . . . . 1 . . . . . . . 1 . . . . . . . . . . . . . . Scanalyzers 6 | . . . . . 2 . . . . . . . . 1 . . . . . . . . . 1 . . 2 . Garrison Access 6 | . . . . . 1 1 . . 1 . . . . 1 . . . . . . . . . 1 . 1 . . Total Hacks 185 | . 23 1 2 . 19 37 10 . 13 1 . 21 . 18 2 . . . 5 . . . . 7 2 9 15 . Successful 117 | . 16 1 2 . 12 22 7 . 8 1 . 21 . 11 2 . . . 2 . . . . 3 1 2 6 . Failed 65 | . 6 . . . 6 15 3 . 5 . . . . 7 . . . . 3 . . . . 3 1 7 9 . Catastrophic 13 | . . . . . 1 . . . 1 . . . . 1 . . . . 1 . . . . 2 1 2 4 . Database Lockouts 3 | . 1 . . . 1 . . . . . . . . . . . . . . . . . . 1 . . . . Manual 61 | . 20 . 1 . 5 10 4 . 8 . 1 . . 8 . . . . . . 1 . . . . 1 2 . Terminals 85 | . 19 . . . 10 27 10 . 10 . . . . 9 . . . . . . . . . . . . . . Fabricators 9 | . . . . . . . . . 1 . . . . . . . . . 3 . . . . 1 2 . 2 . Repair Stations 29 | . 3 . . . 2 7 . . 1 . . . . 2 . . . . 2 . . . . 2 . 8 2 . Recycling Units 5 | . 1 . . . . 1 . . . . . . . 3 . . . . . . . . . . . . . . Scanalyzers 21 | . . . . . 5 . . . . . . . . 3 . . . . . . . . . 2 . . 11 . Garrison Access 9 | . . . . . 2 2 . . 1 . . . . 1 . . . . . . . . . 2 . 1 . . Terminal Hacks 55 | . 3 1 2 . 4 12 4 . 3 1 . 21 . 2 2 . . . . . . . . . . . . . Record 5 | . . . 1 . . . . . . . . 2 . . 2 . . . . . . . . . . . . . Part Schematic 16 | . 1 . . . . 1 1 . . . . 13 . . . . . . . . . . . . . . . . Robot Schematic 3 | . . . . . . . . . . . . 3 . . . . . . . . . . . . . . . . Robot Analysis 1 | . . . . . . 1 . . . . . . . . . . . . . . . . . . . . . . Prototype ID Bank 7 | . 1 . . . 1 1 . . 1 . . 3 . . . . . . . . . . . . . . . . Open Door 5 | . . 1 . . . 3 . . . 1 . . . . . . . . . . . . . . . . . . Branch Access Points 1 | . . . . . . . . . 1 . . . . . . . . . . . . . . . . . . . Terminal Index 1 | . 1 . . . . . . . . . . . . . . . . . . . . . . . . . . . Fabricator Index 1 | . . . . . . . . . 1 . . . . . . . . . . . . . . . . . . . Alert Level 3 | . . . . . . 2 . . . . . . . 1 . . . . . . . . . . . . . . Unreport Threat 6 | . . . . . 2 3 1 . . . . . . . . . . . . . . . . . . . . . Locate Traps 1 | . . . . . . . . . . . . . . 1 . . . . . . . . . . . . . . Registered Components 3 | . . . . . 1 1 1 . . . . . . . . . . . . . . . . . . . . . Registered Prototypes 1 | . . . . . . . 1 . . . . . . . . . . . . . . . . . . . . . Proto ID Catalog 1 | . . . 1 . . . . . . . . . . . . . . . . . . . . . . . . . Fabricator Hacks 4 | . . . . . . . . . . . . . . . . . . . 2 . . . . 1 1 . . . Network Status 1 | . . . . . . . . . . . . . . . . . . . 1 . . . . . . . . . Load Schematic 2 | . . . . . . . . . . . . . . . . . . . 1 . . . . . 1 . . . Build 1 | . . . . . . . . . . . . . . . . . . . . . . . . 1 . . . . Repair Station Hacks 11 | . 2 . . . 2 5 . . . . . . . . . . . . . . . . . 1 . 1 . . Scan Component 7 | . 1 . . . 1 3 . . . . . . . . . . . . . . . . . 1 . 1 . . Repair 4 | . 1 . . . 1 2 . . . . . . . . . . . . . . . . . . . . . . Recycling Unit Hacks 1 | . . . . . . . . . . . . . . 1 . . . . . . . . . . . . . . Retrieve Matter 1 | . . . . . . . . . . . . . . 1 . . . . . . . . . . . . . . Scanalyzer 14 | . . . . . 4 . . . . . . . . 3 . . . . . . . . . 1 . . 6 . Insert Component 1 | . . . . . 1 . . . . . . . . . . . . . . . . . . . . . . . Analyze 1 | . . . . . 1 . . . . . . . . . . . . . . . . . . . . . . . Retrieve Study 12 | . . . . . 2 . . . . . . . . 3 . . . . . . . . . 1 . . 6 . Garrison Access Hacks 3 | . . . . . . 1 . . 1 . . . . 1 . . . . . . . . . . . . . . Seal Access 3 | . . . . . . 1 . . 1 . . . . 1 . . . . . . . . . . . . . . Unauthorized Hacks 29 | . 11 . . . 2 4 3 . 4 . . . . 4 . . . . . . . . . . . 1 . . Terminals 21 | . 9 . . . 2 2 3 . 2 . . . . 3 . . . . . . . . . . . . . . Botnet 12 | . 3 . . . 2 2 2 . 1 . . . . 2 . . . . . . . . . . . . . . Detonate 1 | . 1 . . . . . . . . . . . . . . . . . . . . . . . . . . . Operators 4 | . 1 . . . . . 1 . 1 . . . . 1 . . . . . . . . . . . . . . Skim 4 | . 4 . . . . . . . . . . . . . . . . . . . . . . . . . . . Fabricators 1 | . . . . . . . . . 1 . . . . . . . . . . . . . . . . . . . Overload 1 | . . . . . . . . . 1 . . . . . . . . . . . . . . . . . . . Repair Stations 5 | . 1 . . . . 1 . . 1 . . . . 1 . . . . . . . . . . . 1 . . Mechanics 5 | . 1 . . . . 1 . . 1 . . . . 1 . . . . . . . . . . . 1 . . Recycling Units 2 | . 1 . . . . 1 . . . . . . . . . . . . . . . . . . . . . . Tunnel 2 | . 1 . . . . 1 . . . . . . . . . . . . . . . . . . . . . . Scanalyzers . | . . . . . . . . . . . . . . . . . . . . . . . . . . . . . Garrison Access . | . . . . . . . . . . . . . . . . . . . . . . . . . . . . . Data Cores Recovered 2 | . 1 . . . 1 . . . . . . . . . . . . . . . . . . . . . . . Used 1 | . . . . . 1 . . . . . . . . . . . . . . . . . . . . . . . Hacking Detections 52 | . 6 . . . 6 12 4 . 6 . . . . 6 . . . . 2 . . . . 3 1 2 4 . Full Trace Events 2 | . . . . . 1 . . . 1 . . . . . . . . . . . . . . . . . . . Feedback Events . | . . . . . . . . . . . . . . . . . . . . . . . . . . . . . Feedback Blocked . | . . . . . . . . . . . . . . . . . . . . . . . . . . . . . Robot Schematics Acquired 3 | . . . . . . . . . . . . 3 . . . . . . . . . . . . . . . . Robots Built . | . . . . . . . . . . . . . . . . . . . . . . . . . . . . . Authchips . | . . . . . . . . . . . . . . . . . . . . . . . . . . . . . Time . | . . . . . . . . . . . . . . . . . . . . . . . . . . . . . Total Robot Build Rating . | . . . . . . . . . . . . . . . . . . . . . . . . . . . . . Part Schematics Acquired 17 | . 1 . . . 1 1 1 . . . . 13 . . . . . . . . . . . . . . . . Parts Built 2 | . . . . . . . . . . . . . . . . . . . . . . . . 2 . . . . Authchips . | . . . . . . . . . . . . . . . . . . . . . . . . . . . . . Time 117 | . . . . . . . . . . . . . . . . . . . . . . . . 117 . . . . Total Part Build Rating 14 | . . . . . . . . . . . . . . . . . . . . . . . . 14 . . . . Part Studies Acquired 12 | . . . . . 2 . . . . . . . . 3 . . . . . . . . . 1 . . 6 . Parts Repaired 4 | . 1 . . . 1 2 . . . . . . . . . . . . . . . . . . . . . . Time 103 | . 26 . . . 26 51 . . . . . . . . . . . . . . . . . . . . . . Parts Recycled . | . . . . . . . . . . . . . . . . . . . . . . . . . . . . . Recycled Matter . | . . . . . . . . . . . . . . . . . . . . . . . . . . . . . Retrieved Matter . | . . . . . . . . . . . . . . . . . . . . . . . . . . . . . Retrieved Components . | . . . . . . . . . . . . . . . . . . . . . . . . . . . . . Parts Scanalyzed 1 | . . . . . 1 . . . . . . . . . . . . . . . . . . . . . . . Part Schematics Acquired 1 | . . . . . 1 . . . . . . . . . . . . . . . . . . . . . . . Parts Damaged . | . . . . . . . . . . . . . . . . . . . . . . . . . . . . . Bothacking | -11 -10 -10 -10 -9 -8 -8 -7 -7 -7 -7 -7 -7 -6 -6 -6 -6 -6 -5 -5 -5 -5 -5 -5 -4 -4 -3 -3 -2 ------------ Run | Yrd Mat Min Exi Min Mat Sto Fac Was Fac Low Low Dat Pro Fac Low Low Zio Pro Fac Ext Cet Arc Hub Fac Arm Res Tes Res Used RIF Installer . | . . . . . . . . . . . . . . . . . . . . . . . . . . . . . Robots Hacked 7 | . . . . . 7 . . . . . . . . . . . . . . . . . . . . . . . Non-combat 6 | . . . . . 6 . . . . . . . . . . . . . . . . . . . . . . . Combat 1 | . . . . . 1 . . . . . . . . . . . . . . . . . . . . . . . Robot Hacks Applied 13 | . . . . . 13 . . . . . . . . . . . . . . . . . . . . . . . parse_system 4 | . . . . . 4 . . . . . . . . . . . . . . . . . . . . . . . no_distress 5 | . . . . . 5 . . . . . . . . . . . . . . . . . . . . . . . find_recycling 1 | . . . . . 1 . . . . . . . . . . . . . . . . . . . . . . . check_alert 3 | . . . . . 3 . . . . . . . . . . . . . . . . . . . . . . . Relay Couplers Released 2 | . . . . . . . . . . . . . . . . . . . . . . . 2 . . . . . Machine Destruction 2 | . . . . . . . . . . . . . . . . . . . . . . . 2 . . . . . Fabnet Peak Effective % . | . . . . . . . . . . . . . . . . . . . . . . . . . . . . . Robots Rewired 19 | . . . 5 . . . . . . . . . . . . . . . . 13 . . . . . . 1 . Allies Hacked . | . . . . . . . . . . . . . . . . . . . . . . . . . . . . . Hacks Repelled . | . . . . . . . . . . . . . . . . . . . . . . . . . . . . . Allies | -11 -10 -10 -10 -9 -8 -8 -7 -7 -7 -7 -7 -7 -6 -6 -6 -6 -6 -5 -5 -5 -5 -5 -5 -4 -4 -3 -3 -2 -------- Run | Yrd Mat Min Exi Min Mat Sto Fac Was Fac Low Low Dat Pro Fac Low Low Zio Pro Fac Ext Cet Arc Hub Fac Arm Res Tes Res Total Allies 47 | . . . 5 . . 2 . . . . . . . . . . . 1 . 33 5 . . . . . 1 . Largest Group 26 | . . . 5 5 3 2 . . . . . . . . . . . 1 . 23 26 23 16 . . . 1 1 Highest-Rated Group 1208 | . . . 53 53 37 62 . . . . . . . . . . . 85 . 778 1208 1116 802 . . . 156 156 Highest-Rated Ally 159 | . . . 21 21 21 31 . . . . . . . . . . . 85 . 159 159 159 96 . . . 156 156 Total Orders 27 | . . 1 . . . . . . . . . . . . . . . 1 . 4 8 . 5 1 . . 4 3 STAY 4 | . . . . . . . . . . . . . . . . . . . . . 4 . . . . . . . FOLLOW 1 | . . . . . . . . . . . . . . . . . . . . . 1 . . . . . . . RETURN 22 | . . 1 . . . . . . . . . . . . . . . 1 . 4 3 . 5 1 . . 4 3 Ally Attacks 466 | . . . . 25 10 21 . . . . . . . . . . . 1 . 195 72 32 94 . . . 4 12 Total Damage 11525 | . . . . 229 114 226 . . . . . . . . . . . 10 . 4060 1411 979 3285 . . . 329 882 Kills 67 | . . . . 6 . 1 . . . . . . . . . . . . . 16 12 3 21 . . . 4 4 Allies Corrupted 6 | . . . . . . . . . . . . . . . . . . . . . . . 5 . . . . 1 Allies Melted 1 | . . . . . . . . . . . . . . . . . . 1 . . . . . . . . . . Intel | -11 -10 -10 -10 -9 -8 -8 -7 -7 -7 -7 -7 -7 -6 -6 -6 -6 -6 -5 -5 -5 -5 -5 -5 -4 -4 -3 -3 -2 ------- Run | Yrd Mat Min Exi Min Mat Sto Fac Was Fac Low Low Dat Pro Fac Low Low Zio Pro Fac Ext Cet Arc Hub Fac Arm Res Tes Res Active Infowar (turns) 26602 | 57 1783 1018 635 802 1675 457 250 76 895 720 382 97 578 1340 1212 663 1364 476 724 1530 753 672 639 1331 981 2677 850 1965 Sensors 14421 | . . . . 4 . . 250 76 895 720 382 97 578 1340 1 . . 266 668 1240 352 117 478 1202 921 2543 761 1530 IFF 3419 | . . . . . . . . . . . . . . . 1188 663 1358 210 . . . . . . . . . . Terrain 5471 | . . . . . . . . . . 311 327 97 430 198 1086 663 1356 172 . . . . . 643 188 . . . Structural 37 | . . . . . . . . . . . . . . . . . . . . . . . . . . . 37 . Seismic 7653 | 57 1783 1018 635 798 1675 457 . . . . . . . . . . . . . . . . . 538 692 . . . Machine Analysis 1053 | . . . . . . . . . . 357 382 97 217 . . . . . . . . . . . . . . . Cloaking 1561 | . . . . . 418 . . . . . . . . . . . . . . . . . . . . . . 1143 Jamming 12655 | . . . . . . . . . . . . . . 1331 79 . . . 328 1530 753 672 639 1331 981 2677 849 1485 ECM 2 | . . . . . . . . . . . . . . . . . . . . . . . . . 2 . . . Robot Analysis Total 1 | . . . . . . 1 . . . . . . . . . . . . . . . . . . . . . . Derelict Logs Recovered 9 | . . 1 . 1 . . . . . 2 2 . . . 2 1 . . . . . . . . . . . . Drone Launches 60 | . . 1 . . . . . . . . . . . . . . . 6 . 18 21 . 6 1 . . 4 3 Drone Recoveries 59 | . . 1 . . . . . . . . . . . . . . . 6 . 18 20 . 6 1 . . 4 3 Exploration | -11 -10 -10 -10 -9 -8 -8 -7 -7 -7 -7 -7 -7 -6 -6 -6 -6 -6 -5 -5 -5 -5 -5 -5 -4 -4 -3 -3 -2 ------------- Run | Yrd Mat Min Exi Min Mat Sto Fac Was Fac Low Low Dat Pro Fac Low Low Zio Pro Fac Ext Cet Arc Hub Fac Arm Res Tes Res Turns Passed 28125 | 114 1783 1025 635 803 1716 1341 256 234 1108 724 382 97 578 1340 1223 663 1364 490 734 1530 753 672 639 1331 984 2677 851 2078 Spaces Moved 15221 | 61 756 589 443 724 1225 652 152 99 650 664 310 90 423 815 699 401 835 288 356 661 353 176 308 511 374 1150 527 929 Core 62 | 2 . . . . . . . . . . . . . . . . . . . . . . . . . . . 60 Treads 7230 | 59 660 40 . . . 208 152 99 433 . . . . 71 699 401 835 288 356 661 353 176 308 511 367 . . 553 Legs 6971 | . . . 130 724 1225 444 . . 217 664 310 90 423 744 . . . . . . . . . . 7 1150 527 316 Wheels 958 | . 96 549 313 . . . . . . . . . . . . . . . . . . . . . . . . . Hover . | . . . . . . . . . . . . . . . . . . . . . . . . . . . . . Flight . | . . . . . . . . . . . . . . . . . . . . . . . . . . . . . Fastest Speed 45 | 50 100 145 45 45 60 60 160 160 105 102 102 102 102 103 160 160 160 160 160 160 160 160 160 160 120 116 104 50 Average Speed 135 | 156 189 154 120 89 91 144 160 160 142 103 102 102 103 116 160 160 160 160 160 160 160 160 160 160 157 118 104 133 Slowest Speed 320 | 160 240 320 170 90 170 240 160 160 260 105 102 102 110 181 160 160 160 160 160 160 160 160 160 240 250 120 116 161 Overloaded Moves 311 | . . . 62 9 225 15 . . . . . . . . . . . . . . . . . . . . . . Propulsion Burnouts . | . . . . . . . . . . . . . . . . . . . . . . . . . . . . . Robots Hopped . | . . . . . . . . . . . . . . . . . . . . . . . . . . . . . Potential Cave-ins 30 | . . . . . . . . . . . . . 3 4 7 . . . . . . . . . . . . 16 Cave-ins Triggered 2 | . . . . . . . . . . . . . . . . . . . . . . . . . . . . 2 Exploration Rate (%) 56 | 3 80 99 90 97 82 94 5 74 22 85 55 68 42 26 75 56 85 49 8 85 80 80 36 13 26 28 56 27 Regions Visited 28 Branch Regions 18 Pre-discovered Areas 10 | . 1 1 1 1 . 2 . . . 1 . 1 . . . . 2 . . . . . . . . . . . Known Exits Taken 20 | . . . . . . 1 . . 1 1 1 1 1 1 1 1 1 1 1 1 1 1 1 1 1 1 1 . Unknown Exits Taken 6 | 1 1 1 1 1 1 . . . . . . . . . . . . . . . . . . . . . . . Scrap Searched 21 | . . 3 . 1 . . . . . 11 1 . . . . 1 2 2 . . . . . . . . . . Spaces Dug 394 | . . 11 . . 24 22 . . 9 1 27 . 1 22 1 . . 1 118 . . . 13 5 48 7 34 50 Terrain Destroyed 1223 | . . 25 . . 189 66 . . 48 2 29 . 69 39 54 . . 1 133 7 . 8 19 35 184 35 52 228 Melee 13 | . . . . . . . . . . . . . . 11 . . . . . . . . . . . . 2 . Projectile 374 | . . . . . 49 9 . . 1 2 2 . 10 14 9 . . 1 21 7 . 8 19 35 15 25 25 122 AOE 835 | . . 25 . . 140 57 . . 47 . 27 . 59 14 45 . . . 112 . . . . . 169 10 25 105 Terrain Rammed . | . . . . . . . . . . . . . . . . . . . . . . . . . . . . . Walls Destroyed . | . . . . . . . . . . . . . . . . . . . . . . . . . . . . . Machines Disabled . | . . . . . . . . . . . . . . . . . . . . . . . . . . . . . Actions | -11 -10 -10 -10 -9 -8 -8 -7 -7 -7 -7 -7 -7 -6 -6 -6 -6 -6 -5 -5 -5 -5 -5 -5 -4 -4 -3 -3 -2 --------- Run | Yrd Mat Min Exi Min Mat Sto Fac Was Fac Low Low Dat Pro Fac Low Low Zio Pro Fac Ext Cet Arc Hub Fac Arm Res Tes Res Total 21061 | 73 980 668 524 876 1629 929 166 149 800 694 348 95 515 1105 770 416 862 311 455 1093 545 529 412 857 660 2377 765 1458 Wait 3345 | . 103 41 32 138 152 141 7 21 45 3 6 . 49 142 33 6 2 9 29 225 159 307 58 170 126 1062 117 162 Move 15193 | 60 755 588 442 723 1224 651 152 98 649 663 309 89 422 814 698 400 834 287 355 660 352 175 307 510 373 1149 526 928 Hop . | . . . . . . . . . . . . . . . . . . . . . . . . . . . . . Pick Up 267 | 4 25 4 6 3 28 11 3 . 19 7 3 . 2 22 2 2 4 2 6 11 5 7 1 20 19 19 7 25 Fast Attach 174 | 6 1 2 2 1 7 18 . 4 9 4 3 3 1 7 2 . 6 . 3 4 6 3 . 12 10 20 17 23 Attach 114 | 1 3 . . . 9 2 2 . 4 2 . . 8 5 3 . . . 4 2 . 2 1 13 12 8 2 31 Detach 38 | . . 1 . . 2 1 . 1 2 1 1 . 1 3 2 . . . . . . 1 . . 3 4 3 12 Swap 350 | . 7 7 3 1 39 12 1 9 18 . 6 . 3 21 6 1 6 6 8 20 7 5 15 27 28 24 22 48 Drop 381 | . 10 6 9 4 34 20 1 6 27 8 7 3 2 23 1 2 10 4 5 21 16 9 1 22 29 37 22 42 Fire 983 | 2 72 14 26 3 133 67 . 10 25 6 13 . 27 44 23 5 . 3 40 16 . 20 22 82 60 53 34 183 Melee 32 | . . . 2 . . . . . . . . . . 24 . . . . . . . . . . . . 5 1 Ram 2 | . . 1 . . . . . . . . . . . . . . . . . . . . . . . . . 1 Kick 8 | . . . . 3 1 1 . . 2 . . . . . . . . . . . . . . . . 1 . . Crush 23 | . 4 4 . . . . . . . . . . . . . . . . 5 4 . . 4 1 . . . 1 Escape Stasis 6 | . . . . . . 5 . . . . . . . . . . . . . . . . . . . . . 1 Rewire 142 | . . . 2 . . . . . . . . . . . . . . . . 130 . . . . . . 10 . Trap . | . . . . . . . . . . . . . . . . . . . . . . . . . . . . . Miscellaneous 3 | . . . . . . . . . . . . . . . . . . . . . . . 3 . . . . . Route ------- -11/Scrapyard -10/Materials (discovered 4 exits: [*Mat x3] / *Min) -10/Mines (discovered 4 exits: [*Mat x2] / *Exi / [*Sub]) -10/Exiles -9/Mines (discovered 2 exits: *Mat x2) -8/Materials (discovered 3 exits: *Fac x2 / *Sto) -8/Storage (discovered 2 exits: *Fac / [*Rec]) -7/Factory -7/Waste -7/Factory (discovered 2 exits: *Low x2) -7/Lower Caves -7/Lower Caves -7/Data Miner -6/Proximity Caves -6/Factory (discovered 2 exits: *Fac / *Low) -6/Lower Caves -6/Lower Caves (discovered 2 exits: *Fac / *Zio) -6/Zion -5/Proximity Caves -5/Factory (discovered 2 exits: *Fac / *Ext) -5/Extension (discovered 2 exits: *Fac / *Cet) -5/Cetus (discovered 2 exits: *Fac / *Arc) -5/Archives (discovered 2 exits: *Fac / *Hub) -5/Hub_04(d) (discovered 4 exits: *Fac x4) -4/Factory (discovered 3 exits: *Upp x2 / *Arm) -4/Armory -3/Research (discovered 2 exits: *Res / *Tes) -3/Testing -2/Research History --------- Turn | Location | Event 40 | -11/Scrapyard | Discovered new exit (range 15) 115 | -11/Scrapyard | Entered Materials 306 | -10/Materials | Build established: Mutant 732 | -10/Materials | Repaired Lgt. Treads 767 | -10/Materials | Discovered new exit (range 11) 1135 | -10/Materials | Core integrity fell below 50% 1221 | -10/Materials | Discovered new exit (range 3) 1493 | -10/Materials | Discovered new exit (range 8) 1527 | -10/Materials | Central database locked down 1858 | -10/Materials | Discovered new exit (range 7) 1898 | -10/Materials | Entered Mines 1905 | -10/Mines | Received a Rocket Launcher from a helpful Derelict 2085 | -10/Mines | Discovered new exit (range 15) 2094 | -10/Mines | Learned Materials security intel 2096 | -10/Mines | Found the Drone Emporium 2106 | -10/Mines | Found Prototype Device 2106 | -10/Mines | Identified Splice Drone Bay 2198 | -10/Mines | Discovered new exit (range 6) 2247 | -10/Mines | Learned location of Storage (-8) 2613 | -10/Mines | Deemed a non-threat by the Exiles lab entrance 2613 | -10/Mines | Discovered new exit (range 5) 2733 | -10/Mines | Discovered new exit (range 5) 2923 | -10/Mines | Entered Exiles 2923 | -10/Exiles | Found Exiles lab destroyed 3305 | -10/Exiles | Learned location of Zion (-6) 3409 | -10/Exiles | Build established: Scavenger-Mutant 3417 | -10/Exiles | Opened EX-Vault 3425 | -10/Exiles | Found Potential Leg 3429 | -10/Exiles | Found Potential Leg 3527 | -10/Exiles | Discovered new exit (range 14) 3558 | -10/Exiles | Entered Mines 3558 | -9/Mines | Accompanied by 5 allies 3567 | -9/Mines | Met a Derelict bent on vengeance 3569 | -9/Mines | Found a damaged Exp. Sensor Array with a note attached 3571 | -9/Mines | Found Prototype Device 3571 | -9/Mines | Identified Exp. Sensor Array 3645 | -9/Mines | Assembled infested the area 3650 | -9/Mines | Assisted by a Guerilla fighting off Assembled 3676 | -9/Mines | Discovered new exit (range 15) 3805 | -9/Mines | Build established: Commander-Mutant 3832 | -9/Mines | Discovered new exit (range 14) 3850 | -9/Mines | Learned location of Recycling (-8) 4109 | -9/Mines | Build established: Mutant 4361 | -9/Mines | Entered Materials 4361 | -8/Materials | Accompanied by 3 allies 4361 | -8/Materials | Evolved 4 slots: Propulsion x1, Utility x2, Weapon x1 4473 | -8/Materials | Lost 3 allies 5525 | -8/Materials | Repaired Seismic Detector 5525 | -8/Materials | Build established: Gunner 5545 | -8/Materials | Discovered new exit (range 6) 5644 | -8/Materials | Discovered new exit (range 16) 5668 | -8/Materials | Central database locked down 5822 | -8/Materials | Identified exit to Factory 6034 | -8/Materials | Discovered new exit (range 15) 6077 | -8/Materials | Entered Storage 6424 | -8/Storage | Learned location of Armory (-4) 6441 | -8/Storage | Met a pair of Derelict thieves 6458 | -8/Storage | Used back door to open Recycling access 6458 | -8/Storage | Discovered new exit (range 5) 7046 | -8/Storage | Repaired Rocket Launcher+ 7068 | -8/Storage | Build established: Scavenger-Gunner 7137 | -8/Storage | Repaired Imp. Heat Sink 7348 | -8/Storage | Discovered exit to Factory (range 9) 7418 | -8/Storage | Entered Factory 7418 | -7/Factory | Evolved 2 slots: Propulsion x1, Utility x1 7674 | -7/Factory | Sucked down chute 7674 | -7/Factory | Entered Waste 7726 | -7/Waste | Build established: Scavenger-Skirmisher 7727 | -7/Waste | Spotted C-40 Crusher 7738 | -7/Waste | Destroyed C-40 Crusher 7776 | -7/Waste | Spotted C-40 Crusher 7780 | -7/Waste | Destroyed C-40 Crusher 7792 | -7/Waste | Spotted C-40 Crusher 7803 | -7/Waste | Spotted C-40 Crusher 7874 | -7/Waste | Spotted C-40 Crusher 7884 | -7/Waste | Discovered new exit (range 16) 7884 | -7/Waste | Spotted C-40 Crusher 7886 | -7/Waste | Crushed by Compactor (1 part destroyed) 7888 | -7/Waste | Crushed by Compactor (0 parts destroyed, 1 dropped) 7906 | -7/Waste | Identified exit to Factory 7908 | -7/Waste | Entered Factory 8296 | -7/Factory | Build established: Skirmisher 8605 | -7/Factory | Identified exit to Lower Caves 8667 | -7/Factory | Cargo convoy interrupted 8681 | -7/Factory | System corruption reached 10% 8727 | -7/Factory | Destroyed 9 combat bots 9016 | -7/Factory | Entered Lower Caves 9100 | -7/Lower Caves | Encountered a Warlord checkpoint 9101 | -7/Lower Caves | Learned 8 Factory zone layouts 9427 | -7/Lower Caves | Found Alien Artifact 9427 | -7/Lower Caves | Identified Core Expander 9427 | -7/Lower Caves | Installed Core Expander, added new Propulsion slot 9614 | -7/Lower Caves | Discovered new exit (range 12) 9624 | -7/Lower Caves | Identified exit to Lower Caves 9740 | -7/Lower Caves | Entered another Lower Caves area 9936 | -7/Lower Caves | Acquired the password to a Derelict Tinkerer's latest research 9940 | -7/Lower Caves | Identified exit to Data Miner 9945 | -7/Lower Caves | Found Prototype Special Weapon 9945 | -7/Lower Caves | Identified Molecular Deconstructor 10033 | -7/Lower Caves | Encountered a Warlord checkpoint 10122 | -7/Lower Caves | Entered Data Miner 10124 | -7/Data Miner | Discovered new exit (range 6) 10129 | -7/Data Miner | Identified exit to Proximity Caves 10143 | -7/Data Miner | Met Data Miner 10161 | -7/Data Miner | Learned location of Section 7 (-2) 10161 | -7/Data Miner | Acquired the access code to Warlord's prototype stash 10178 | -7/Data Miner | Received God Mode back door access code from Data Miner 10219 | -7/Data Miner | Entered Proximity Caves 10381 | -6/Proximity Caves | Spotted B-75 Beast 10461 | -6/Proximity Caves | Destroyed B-75 Beast 10496 | -6/Proximity Caves | Lost 4 parts (2u2w) 10786 | -6/Proximity Caves | Discovered new exit (range 9) 10794 | -6/Proximity Caves | Identified exit to Factory 10797 | -6/Proximity Caves | Entered Factory 10797 | -6/Factory | Evolved 2 slots: Power x1, Utility x1 10798 | -6/Factory | Identified exit to Lower Caves 10890 | -6/Factory | Watched by a mysterious "MATRIX" hacker. 11082 | -6/Factory | Lost 4 parts (1p2n1w) 11655 | -6/Factory | Discovered new exit (range 15) 11669 | -6/Factory | Identified exit to Factory 11968 | -6/Factory | Found Prototype Launcher 11968 | -6/Factory | Identified Scatter Rocket Array 12137 | -6/Factory | Entered Lower Caves 12497 | -6/Lower Caves | Learned Factory stockpile data 12500 | -6/Lower Caves | Build established: Tank 12505 | -6/Lower Caves | Learned Factory garrison access intel 12996 | -6/Lower Caves | Entered a destroyed Warlord outpost 13272 | -6/Lower Caves | Discovered new exit (range 15) 13293 | -6/Lower Caves | Identified exit to Lower Caves 13360 | -6/Lower Caves | Entered another Lower Caves area 13382 | -6/Lower Caves | Discovered exit to Factory (range 14) 13817 | -6/Lower Caves | Discovered new exit (range 12) 13820 | -6/Lower Caves | Learned Factory emergency access door positions 13838 | -6/Lower Caves | Identified exit to Zion 14023 | -6/Lower Caves | Entered Zion 14063 | -6/Zion | Given the Hacking Drone Bay 14064 | -6/Zion | Found Prototype Device 14064 | -6/Zion | Identified Hacking Drone Bay 14141 | -6/Zion | Found Prototype Special Weapon 14141 | -6/Zion | Identified RU-N14's Throwing Claymores 14145 | -6/Zion | Found RU-N14's Throwing Claymores 14178 | -6/Zion | Discovered new exit (range 13) 14199 | -6/Zion | Identified exit to Proximity Caves 14269 | -6/Zion | Given A8's code to call for help 14605 | -6/Zion | Found Prototype Launcher 14605 | -6/Zion | Identified Rocket Array 14735 | -6/Zion | Met Imprinter 14888 | -6/Zion | Visited the Megawrench Repair Shop 14894 | -6/Zion | Megawrench repaired 11 parts 14952 | -6/Zion | Learned location of Quarantine (-2) 15339 | -6/Zion | Found RU-N14's Throwing Claymores 15387 | -6/Zion | Entered Proximity Caves 15557 | -5/Proximity Caves | Spotted B-75 Beast 15587 | -5/Proximity Caves | Destroyed B-75 Beast 15865 | -5/Proximity Caves | Build established: Scavenger-Tank 15869 | -5/Proximity Caves | Discovered exit to Factory (range 3) 15877 | -5/Proximity Caves | Entered Factory 15877 | -5/Factory | Evolved 2 slots: Propulsion x1, Utility x1 15880 | -5/Factory | Loaded intel: 4 garrison access locations 16016 | -5/Factory | Discovered new exit (range 4) 16021 | -5/Factory | Identified exit to Factory 16403 | -5/Factory | Discovered new exit (range 14) 16610 | -5/Factory | Identified exit to Extension 16611 | -5/Factory | Entered Extension 16652 | -5/Extension | Rescued a captive Derelict 16652 | -5/Extension | Rescued a captive Derelict 16740 | -5/Extension | Rescued a captive Derelict 16781 | -5/Extension | Rescued a captive Derelict 17002 | -5/Extension | Rescued A7 17079 | -5/Extension | Rescued a captive Derelict 17098 | -5/Extension | Rescued a captive Derelict 17099 | -5/Extension | Rescued a captive Derelict 17104 | -5/Extension | Rescued a captive Derelict 17187 | -5/Extension | Build established: Commander-Tank 17468 | -5/Extension | Spotted B-75 Beast 17480 | -5/Extension | Spotted B-75 Beast 17504 | -5/Extension | Destroyed B-75 Beast 17527 | -5/Extension | Allies destroyed B-75 Beast 17555 | -5/Extension | Lost 3 allies 17557 | -5/Extension | Rescued a captive Derelict 17557 | -5/Extension | Rescued a captive Derelict 17597 | -5/Extension | Rescued a captive Derelict 17598 | -5/Extension | Rescued a captive Derelict 17674 | -5/Extension | Rescued a captive Derelict 17675 | -5/Extension | Rescued a captive Derelict 17696 | -5/Extension | Rescued a captive Derelict 17758 | -5/Extension | Rescued a captive Derelict 17782 | -5/Extension | Lost 3 allies 17990 | -5/Extension | Discovered exit to Factory (range 10) 17992 | -5/Extension | Discovered new exit (range 6) 18000 | -5/Extension | Identified exit to Cetus 18141 | -5/Extension | Entered Cetus 18141 | -5/Cetus | Accompanied by 22 allies (A7) 18146 | -5/Cetus | Acquired a Cetus Manufacturing Module code from A7 18163 | -5/Cetus | Spotted Cetus Guard 18163 | -5/Cetus | Spotted Cetus Guard 18165 | -5/Cetus | Allies destroyed Cetus Guard 18165 | -5/Cetus | Spotted Cetus Guard 18167 | -5/Cetus | Spotted Cetus Guard 18170 | -5/Cetus | Allies destroyed Cetus Guard 18177 | -5/Cetus | Allies destroyed Cetus Guard 18340 | -5/Cetus | Started Cetus Manufacturing Module 18365 | -5/Cetus | Manufactured an Enhanced Grunt 18367 | -5/Cetus | Escorted A7 to Cetus Mainframe 18390 | -5/Cetus | Manufactured an Enhanced Grunt 18415 | -5/Cetus | Manufactured an Enhanced Grunt 18440 | -5/Cetus | Manufactured an Enhanced Grunt 18465 | -5/Cetus | Manufactured an Enhanced Grunt 18472 | -5/Cetus | Discovered new exit (range 15) 18520 | -5/Cetus | Spotted Cetus Guard 18520 | -5/Cetus | Spotted Cetus Guard 18522 | -5/Cetus | Spotted Cetus Guard 18523 | -5/Cetus | Spotted Cetus Guard 18524 | -5/Cetus | Discovered exit to Factory (range 21) 18524 | -5/Cetus | Allies destroyed Cetus Guard 18538 | -5/Cetus | Allies destroyed Cetus Guard 18539 | -5/Cetus | Allies destroyed Cetus Guard 18547 | -5/Cetus | Met Revision 17 18780 | -5/Cetus | Identified exit to Archives 18891 | -5/Cetus | Security sweep announced 18894 | -5/Cetus | Entered Archives 18894 | -5/Archives | Accompanied by 23 allies (A7) 18899 | -5/Archives | Received a hacking code to weaken MAIN.C 18945 | -5/Archives | Discovered new exit (range 16) 18956 | -5/Archives | Lost 3 allies 19002 | -5/Archives | System corruption reached 10% 19021 | -5/Archives | Discovered exit to Factory (range 13) 19230 | -5/Archives | Build established: Scavenger-Tank 19526 | -5/Archives | Identified exit to Hub_04(d) 19566 | -5/Archives | Entered Hub_04(d) 19566 | -5/Hub_04(d) | Accompanied by 16 allies 20025 | -5/Hub_04(d) | Network Hub disabled 20106 | -5/Hub_04(d) | Spotted Lightning 20106 | -5/Hub_04(d) | Spotted Lightning 20150 | -5/Hub_04(d) | Spotted Lightning 20157 | -5/Hub_04(d) | Lost 12 allies 20205 | -5/Hub_04(d) | Entered Factory 20205 | -4/Factory | Evolved 2 slots: Utility x2 20230 | -4/Factory | Lost 5 parts (2n2u1w) 20245 | -4/Factory | Discovered new exit (range 9) 20324 | -4/Factory | Identified exit to Upper Caves 20354 | -4/Factory | Identified exit to Armory 20556 | -4/Factory | Build established: Scavenger-Skirmisher 20676 | -4/Factory | Fabricated Adv. Transmission Jammer (x2) 20795 | -4/Factory | Central database locked down 21187 | -4/Factory | Lost 3 parts (1p1n1w) 21536 | -4/Factory | Entered Armory 21569 | -4/Armory | Found Fusion Bomb Launcher 21572 | -4/Armory | Found Fusion Bomb Launcher 21783 | -4/Armory | Destroyed 8 combat bots 22235 | -4/Armory | System corruption reached 10% 22277 | -4/Armory | Destroyed 9 combat bots 22277 | -4/Armory | Lost 4 parts (1p1n2u) 22504 | -4/Armory | Discovered new exit (range 9) 22519 | -4/Armory | Identified exit to Research 22520 | -4/Armory | Entered Research 22520 | -3/Research | Evolved 2 slots: Power x1, Utility x1 22548 | -3/Research | Lost 4 parts (2n2w) 22720 | -3/Research | Revision forces began assault on 0b10 22755 | -3/Research | Met up with Revision 17++ 22826 | -3/Research | Discovered new exit (range 6) 22855 | -3/Research | Identified exit to Testing 23160 | -3/Research | Discovered new exit (range 13) 23175 | -3/Research | Identified exit to Research 23220 | -3/Research | Research terminal network offline 23723 | -3/Research | Spotted Striker 23873 | -3/Research | Build established: Scavenger-Gunner 24237 | -3/Research | Build established: Scavenger-Tank 25197 | -3/Research | Entered Testing 25302 | -3/Testing | Found Prototype Processor 25302 | -3/Testing | Identified Exp. Target Analyzer 25317 | -3/Testing | Found Prototype Launcher 25317 | -3/Testing | Identified Smartbomb Launcher 25414 | -3/Testing | Found Fusion Bomb Launcher 25420 | -3/Testing | Found Prototype Device 25420 | -3/Testing | Identified Adv. Kinecellerator 25569 | -3/Testing | Found Prototype Protection 25569 | -3/Testing | Identified Centrium Heavy Armor Plating 25803 | -3/Testing | Spotted Superbehemoth 25959 | -3/Testing | Rewired PX-J9U0CVHSRW 26048 | -3/Testing | Entered Research 26048 | -2/Research | Accompanied by 1 ally 26048 | -2/Research | Evolved 2 slots: Utility x2 26088 | -2/Research | Build established: Scientist-Mutant 26367 | -2/Research | Found Gamma Bomb Array 26397 | -2/Research | Found Prototype Processor 26397 | -2/Research | Identified Exp. Terrain Scan Processor 26444 | -2/Research | Found Prototype Processor 26444 | -2/Research | Identified Spectral Analyzer 26606 | -2/Research | Found Fusion Bomb Launcher 26891 | -2/Research | System corruption reached 10% 26975 | -2/Research | Found Prototype Device 26975 | -2/Research | Identified Exp. Actuator Array 27298 | -2/Research | First assault squad dispatched 27395 | -2/Research | Crushed by falling debris 27401 | -2/Research | Crushed by falling debris 27538 | -2/Research | Lost 4 parts (1p3u) 27542 | -2/Research | System corruption reached 30% 27547 | -2/Research | Build established: Scavenger-Tank 27717 | -2/Research | Destroyed 11 combat bots 28030 | -2/Research | Lost 7 parts (1p2n1u3w) 28064 | -2/Research | Incoming assault squad redirected 28088 | -2/Research | Core integrity fell below 50% 28098 | -2/Research | Core integrity fell below 20% 28118 | -2/Research | Lost 15 parts (5p3n3u4w) 28123 | -2/Research | Spotted B-90 Cyclops 28126 | -2/Research | Destroyed by S-43 Plague with Heavy Machine Gun Last Messages --------------- 28094_ Dropped Hcp. Storage Unit. 28095_ Dropped Graviton Cannon. 28095_ Slug penetrates G-73 Enforcer. 28095_ Penetrated by Slug. 28095_ U-05 Engineer builds a Wall. 28096_ K-01 Serf collects debris. 28097_ The unstable cave ceiling collapses. 28097_ Penetrated by Slug. 28097_ K-01 Serf collects debris. 28106_ O-32 Director: "IFF HANDSHAKE FAILED. SECURING TERMINAL." 28110_ System corrupted: Heat flow error (+218). 28114_ O-32 Director uses terminal to summon reinforcements. 28114_ ALERT: Hostiles spotted, dispatching reinforcements to Terminal R016. 28114_ O-32 Director locks terminal. 28122_ Slammed into R-10 Processor. 28123_ R-10 Processor inserts Imp. Antigrav System into recycling unit. Map ----- +----------------------------------------------------+ | ???????????????????????????????????????? +?????? | | ???????????????????????????????????????? #??????? | | ???????????????????????#######????????? #??????? | | ???????????????????????# ########## #??????? | | ???????????????????????# T" #??????? | | ???????????????????????# "" #??????? | | ???????????????????????# #??????# | | ???????????????????????# #######/### ##??????? | | ???????????????????????### #### #?# #???????? | | ?????????????????????????# #??# #?# #???????? | | ?????????????????#########+#??# #?# #???????? | | ?????????????????# #??# #?# #?####### | | ?????????????????#] #??# ### ### | | ?????????????????# #??# # [ # | | ?????????????????# """"" ########/## # ! | | ?????????????????# """"" + T + | | ?????????????????# """"" ########### # | | ?????????????????# #?????????# # | | ?????????????????# #?????????###+######### | | ?????????????????######s####?????? #?? ??????? | | ????????????####+### s #???? ## ????# | | ????????????# #?? ""## #???? | | ??????????# B R# ""## #???? | | ??????????# k + S"## #???? | | ??????????### """ # """###########???? | | ?????????? "Y" @ #?? """#?????????????? | | ????????? "R" #????"""#?????????????? | | ????????? A ##?????? #?????????????? | | ?????????? #??????????????????????? | | ?????????? u k #??????????????????????? | | ??????????? """ #??????????????????????? | | ???????????? """ #??????????????????????? | | ????????????? ??""" #??????????????????????? | | ???????????????? #??????????????????????? | | ???????????????? +??????????????????????? | | ???????????????? #??????????????????????? | | ??????????????? """ ????????????????H??????? | | ??????????????????" ???????????????????????? | | ??????????????????" ???????????????????????? | | ????????????????????? ???????????????????????? | | ??????????????????????? ???????????????????????? | | ?????????????????????????????????????????????????? | | ?????????????????????????????????????????????????? | | ?????????????????????????????????????????????????? | | ?????????????????????????????????????????????????? | | ?????????????????????????????????????????????????? | | ?????????????????????????????????????????????????? | | ?????????????????????????????????????????????????? | | ?????????????????????????????????????????????????? | | ?????????????????????????????????????????????????? | +----------------------------------------------------+ Best States ------------- Heat Dissipation 122 Energy Generation 91 Energy Capacity 840 Matter Stores 300 Matter Capacity 300 Sight Range 16 Robot Scan Range 20 Terrain Scan Range 18 Terrain Scan Density 1010 Jamming Range 16 Cloak Strength 4 Power Amplification 40 Base Temperature (-) 150 Armor Coverage 1200 Propulsion Shielding 66 Point Defense Rating 240 Evasion (%) 70 Target Analysis 8 Core Analysis 6 Armor Integrity Analysis 40 Recoil Reduction 6 Matter Filtering 50 Kinecelleration 50 Offensive Hacking 10 Item Schematics ----------------- Hcp. Storage Unit | -10/Materials | Hacked Rocket Launcher | -8/Materials | Scanalyzed Imp. Cryofiber Web | -8/Storage | Hacked Imp. Transmission Jammer | -7/Factory | Hacked Combat Drone Bay | -7/Data Miner | Free Lgt. Regenerative Plating | -7/Data Miner | Free Biomechanical Wings | -7/Data Miner | Free Thermal Defense Suite | -7/Data Miner | Free Com. Ion Cannon | -7/Data Miner | Free Med. Armored Exoskeleton | -7/Data Miner | Free Imp. Focal Shield | -7/Data Miner | Free Lance | -7/Data Miner | Free Enh. Optical Array | -7/Data Miner | Free Imp. Plasma Cutter | -7/Data Miner | Free Arm. Medium Treads | -7/Data Miner | Free Lrn. Terrain Scanner | -7/Data Miner | Free Adv. Power Amplifier | -7/Data Miner | Free Robot Schematics ------------------ G-50 Soldier | -7/Data Miner | Free S-27 Virus | -7/Data Miner | Free O-24 Administrator | -7/Data Miner | Free Fabricated ------------ Adv. Transmission Jammer | x2 | -4/Factory | Preloaded Repaired ---------- Lgt. Treads | 12% | -10/Materials Seismic Detector | 25% | -8/Materials Rocket Launcher | 71% | -8/Storage Imp. Heat Sink | 35% | -8/Storage Studied --------- Autogun | -8/Materials | Hacked Rocket Launcher | -8/Materials | Hacked Imp. Titanium Leg | -6/Factory | Hacked Hvy. Ion Cannon | -6/Factory | Hacked Hvy. Particle Cannon | -6/Factory | Hacked Railgun | -4/Factory | Hacked Centrium Leg | -3/Testing | Hacked Myomer Leg | -3/Testing | Hacked Quantum Reactor | -3/Testing | Hacked Nova Cannon | -3/Testing | Hacked Particle Reactor | -3/Testing | Hacked Enh. Nova Cannon | -3/Testing | Hacked Alien Tech Used ----------------- Core Expander Achievements -------------- Better Safe Than Exploded Ride The Lightning Challenges ------------ None Game ------ Seed PhysicsGammaSystem Manual? 0 Play Time 04:30:07 Cumulative 412.4 hours Start 2026.04.10 @ 15:20:27 End 2026.04.10 @ 22:38:29 Sessions 1 Manual Loads 0 Difficulty Rogue Special Mode None Game No. 250 Rogue 250 Adventurer 0 Explorer 0 Win Type - Total 17 Types 9/1/3/2/1/0/0/1/0/0 Lore% 93 Gallery% 81 Achievement% 71 Wizard Run 0 Options --------- Layout 1 ASCII 0 Keyboard 0 Movement Mouse Keybinds 0 Fullscreen 2 Font 32/SmallcapsGlow Map View 50x35 Zoom Use 0% Tactical HUD 1 Map Filters NONE Filters NONE Steam 1 RUN: 57905ab5-646e-4c17-9f20-47def1c9dd16